[Event "Titled Tuesday Blitz October 5 2021"]
[White "Karttunen, Mika"]
[Black "Mickiewicz, Piotr"]
[WhiteFideId "502081"]
[BlackFideId "1114891"]
[WhiteElo "2343"]
[BlackElo "2251"]
[Result "0-1"]
[Round "08"]
[TimeControl "180+1"]
[Date "2021.10.05"]
[WhiteClock "0:00:03"]
[BlackClock "0:00:26"]

1. d4 {[%clk 0:03:00]}  d5 {[%clk 0:02:58]} 2. c4 {[%clk 0:02:58]}  e6 {[%clk 0:02:58]} 3. Nc3 {[%clk 0:02:57]}  Nf6 {[%clk 0:02:58]} 4. Nf3 {[%clk 0:02:56]}  c6 {[%clk 0:02:57]} 5. Bg5 {[%clk 0:02:55]}  Nbd7 {[%clk 0:02:57]} 6. e3 {[%clk 0:02:51]}  Qa5 {[%clk 0:02:56]} 7. Nd2 {[%clk 0:02:32]}  Bb4 {[%clk 0:02:50]} 8. Qc2 {[%clk 0:02:14]}  c5 {[%clk 0:02:43]} 9. Bxf6 {[%clk 0:01:53]}  Nxf6 {[%clk 0:02:41]} 10. Bd3 {[%clk 0:01:53]}  cxd4 {[%clk 0:02:39]} 11. exd4 {[%clk 0:01:53]}  dxc4 {[%clk 0:02:01]} 12. Nxc4 {[%clk 0:01:49]}  Bxc3+ {[%clk 0:02:00]} 13. Qxc3 {[%clk 0:01:36]}  Qxc3+ {[%clk 0:02:00]} 14. bxc3 {[%clk 0:01:35]}  Ke7 {[%clk 0:01:58]} 15. a4 {[%clk 0:01:22]}  b6 {[%clk 0:01:58]} 16. a5 {[%clk 0:01:20]}  Bb7 {[%clk 0:01:54]} 17. f3 {[%clk 0:01:15]}  b5 {[%clk 0:01:52]} 18. Ne3 {[%clk 0:00:41]}  Rhc8 {[%clk 0:01:48]} 19. Kd2 {[%clk 0:00:41]}  a6 {[%clk 0:01:42]} 20. Nc2 {[%clk 0:00:37]}  Nd5 {[%clk 0:01:40]} 21. Be4 {[%clk 0:00:29]}  Rc7 {[%clk 0:01:37]} 22. Bxd5 {[%clk 0:00:24]}  Bxd5 {[%clk 0:01:36]} 23. Nb4 {[%clk 0:00:24]}  Rac8 {[%clk 0:01:31]} 24. Rac1 {[%clk 0:00:23]}  Bb7 {[%clk 0:01:29]} 25. Rhe1 {[%clk 0:00:23]}  Kd6 {[%clk 0:01:29]} 26. Re5 {[%clk 0:00:22]}  f6 {[%clk 0:01:27]} 27. Re3 {[%clk 0:00:22]}  e5 {[%clk 0:01:21]} 28. dxe5+ {[%clk 0:00:20]}  fxe5 {[%clk 0:01:19]} 29. Rce1 {[%clk 0:00:20]}  Rc5 {[%clk 0:01:15]} 30. g3 {[%clk 0:00:17]}  R8c7 {[%clk 0:01:10]} 31. Rd3+ {[%clk 0:00:13]}  Ke6 {[%clk 0:01:08]} 32. f4 {[%clk 0:00:13]}  e4 {[%clk 0:01:08]} 33. Rde3 {[%clk 0:00:11]}  Kf5 {[%clk 0:01:08]} 34. h3 {[%clk 0:00:11]}  h5 {[%clk 0:01:07]} 35. Rf1 {[%clk 0:00:11]}  Rd7+ {[%clk 0:01:07]} 36. Kc2 {[%clk 0:00:10]}  Rd6 {[%clk 0:00:59]} 37. Re2 {[%clk 0:00:10]}  Bd5 {[%clk 0:00:52]} 38. Rfe1 {[%clk 0:00:06]}  Bb7 {[%clk 0:00:44]} 39. Re3 {[%clk 0:00:06]}  h4 {[%clk 0:00:44]} 40. gxh4 {[%clk 0:00:05]}  Kxf4 {[%clk 0:00:43]} 41. R3e2 {[%clk 0:00:06]}  Kf3 {[%clk 0:00:41]} 42. Re3+ {[%clk 0:00:06]}  Kf4 {[%clk 0:00:41]} 43. R3e2 {[%clk 0:00:04]}  Rf5 {[%clk 0:00:40]} 44. Rg1 {[%clk 0:00:04]}  Kf3 {[%clk 0:00:38]} 45. Rgg2 {[%clk 0:00:03]}  e3 {[%clk 0:00:37]} 46. Kb2 {[%clk 0:00:02]}  Be4 {[%clk 0:00:37]} 47. Nc2 {[%clk 0:00:01]}  Bxc2 {[%clk 0:00:33]} 48. Kxc2 {[%clk 0:00:01]}  Rfd5 {[%clk 0:00:32]} 49. h5 {[%clk 0:00:02]}  Rxh5 {[%clk 0:00:30]} 50. Kb3 {[%clk 0:00:02]}  Rc5 {[%clk 0:00:27]} 51. Rc2 {[%clk 0:00:02]}  Rd3 {[%clk 0:00:26]} 52. Rge2 {[%clk 0:00:02]}  Rdxc3+ {[%clk 0:00:25]} 53. Rxc3 {[%clk 0:00:03]}  Rxc3+ {[%clk 0:00:26]} 54. Kxc3 {[%clk 0:00:03]}  Kxe2 {[%clk 0:00:26]} 0-1


[Site "https://www.chess.com"]

[Event "Titled Tuesday Blitz October 5 2021"]
[White "Kezin, Roman"]
[Black "Gelman, Alexander"]
[WhiteFideId "24124621"]
[BlackFideId "4118316"]
[WhiteElo "2557"]
[BlackElo "2375"]
[Result "1-0"]
[Round "08"]
[TimeControl "180+1"]
[Date "2021.10.05"]
[WhiteClock "0:01:33"]
[BlackClock "0:00:09"]

1. h4 {[%clk 0:03:00]}  c5 {[%clk 0:02:58]} 2. h5 {[%clk 0:03:01]}  h6 {[%clk 0:02:58]} 3. b3 {[%clk 0:03:00]}  Nf6 {[%clk 0:02:57]} 4. Bb2 {[%clk 0:03:01]}  d5 {[%clk 0:02:57]} 5. e3 {[%clk 0:03:00]}  a6 {[%clk 0:02:56]} 6. Be2 {[%clk 0:02:59]}  Nc6 {[%clk 0:02:56]} 7. Nf3 {[%clk 0:02:59]}  Bf5 {[%clk 0:02:50]} 8. d4 {[%clk 0:02:57]}  e6 {[%clk 0:02:50]} 9. Nbd2 {[%clk 0:02:56]}  Be7 {[%clk 0:02:48]} 10. a3 {[%clk 0:02:56]}  O-O {[%clk 0:02:46]} 11. dxc5 {[%clk 0:02:56]}  Bxc5 {[%clk 0:02:46]} 12. b4 {[%clk 0:02:57]}  Bd6 {[%clk 0:02:37]} 13. c4 {[%clk 0:02:57]}  Qe7 {[%clk 0:02:36]} 14. cxd5 {[%clk 0:02:51]}  exd5 {[%clk 0:02:34]} 15. Nb3 {[%clk 0:02:51]}  Rfe8 {[%clk 0:02:30]} 16. Rc1 {[%clk 0:02:51]}  Rad8 {[%clk 0:02:25]} 17. Nbd4 {[%clk 0:02:50]}  Bd7 {[%clk 0:02:04]} 18. Nxc6 {[%clk 0:02:38]}  bxc6 {[%clk 0:02:04]} 19. Bxa6 {[%clk 0:02:39]}  Ne4 {[%clk 0:01:19]} 20. Bd4 {[%clk 0:02:34]}  Ra8 {[%clk 0:01:15]} 21. Qe2 {[%clk 0:02:34]}  Bg3 {[%clk 0:01:04]} 22. O-O {[%clk 0:02:34]}  Bd6 {[%clk 0:01:01]} 23. Bb7 {[%clk 0:02:12]}  Rxa3 {[%clk 0:00:45]} 24. Bxc6 {[%clk 0:02:11]}  Bxc6 {[%clk 0:00:41]} 25. Rxc6 {[%clk 0:02:12]}  Bxb4 {[%clk 0:00:39]} 26. Qb2 {[%clk 0:02:02]}  f6 {[%clk 0:00:32]} 27. Nh4 {[%clk 0:02:01]}  Rb8 {[%clk 0:00:27]} 28. Ng6 {[%clk 0:01:58]}  Qd7 {[%clk 0:00:26]} 29. Rfc1 {[%clk 0:01:56]}  Raa8 {[%clk 0:00:17]} 30. Rc7 {[%clk 0:01:48]}  Qf5 {[%clk 0:00:18]} 31. f3 {[%clk 0:01:39]}  Qxh5 {[%clk 0:00:16]} 32. Nf4 {[%clk 0:01:34]}  Qf7 {[%clk 0:00:09]} 33. Rxf7 {[%clk 0:01:33]} 1-0


[Site "https://www.chess.com"]

[Event "Titled Tuesday Blitz October 5 2021"]
[White "King, Alexander"]
[Black "Koridze, Lile"]
[WhiteFideId "2063620"]
[BlackFideId "13612514"]
[WhiteElo "2306"]
[BlackElo "1978"]
[Result "1-0"]
[Round "08"]
[TimeControl "180+1"]
[Date "2021.10.05"]
[WhiteClock "0:00:44"]
[BlackClock "0:01:44"]

1. d4 {[%clk 0:03:00]}  Nf6 {[%clk 0:02:59]} 2. c4 {[%clk 0:03:01]}  e6 {[%clk 0:02:58]} 3. Nc3 {[%clk 0:03:02]}  Bb4 {[%clk 0:02:58]} 4. e3 {[%clk 0:03:02]}  O-O {[%clk 0:02:57]} 5. Bd3 {[%clk 0:03:03]}  d5 {[%clk 0:02:57]} 6. Nf3 {[%clk 0:03:03]}  c5 {[%clk 0:02:57]} 7. O-O {[%clk 0:03:04]}  cxd4 {[%clk 0:02:57]} 8. exd4 {[%clk 0:03:04]}  Nc6 {[%clk 0:02:57]} 9. cxd5 {[%clk 0:03:03]}  Nxd5 {[%clk 0:02:56]} 10. Bc2 {[%clk 0:03:04]}  Nf6 {[%clk 0:02:47]} 11. Qd3 {[%clk 0:03:01]}  Bxc3 {[%clk 0:02:47]} 12. bxc3 {[%clk 0:03:01]}  h6 {[%clk 0:02:47]} 13. g4 {[%clk 0:02:45]}  e5 {[%clk 0:02:44]} 14. dxe5 {[%clk 0:02:30]}  Qxd3 {[%clk 0:02:32]} 15. Bxd3 {[%clk 0:02:31]}  Bxg4 {[%clk 0:02:32]} 16. exf6 {[%clk 0:02:27]}  Bxf3 {[%clk 0:02:32]} 17. fxg7 {[%clk 0:02:20]}  Kxg7 {[%clk 0:02:32]} 18. h3 {[%clk 0:02:10]}  Rad8 {[%clk 0:02:30]} 19. Bc2 {[%clk 0:02:04]}  f5 {[%clk 0:02:21]} 20. Bf4 {[%clk 0:01:57]}  Rf6 {[%clk 0:02:17]} 21. Kh2 {[%clk 0:01:55]}  Re8 {[%clk 0:02:12]} 22. Rfe1 {[%clk 0:01:53]}  Be4 {[%clk 0:02:02]} 23. f3 {[%clk 0:01:47]}  Ne5 {[%clk 0:01:57]} 24. Bxe5 {[%clk 0:01:44]}  Rxe5 {[%clk 0:01:56]} 25. fxe4 {[%clk 0:01:40]}  fxe4 {[%clk 0:01:56]} 26. Rxe4 {[%clk 0:01:16]}  Rc5 {[%clk 0:01:53]} 27. Rg1+ {[%clk 0:01:11]}  Kf8 {[%clk 0:01:52]} 28. Bb3 {[%clk 0:01:07]}  Rf2+ {[%clk 0:01:43]} 29. Kh1 {[%clk 0:00:59]}  Rg5 {[%clk 0:01:43]} 30. Rxg5 {[%clk 0:00:53]}  hxg5 {[%clk 0:01:44]} 31. Rg4 {[%clk 0:00:44]} 1-0


[Site "https://www.chess.com"]

[Event "Titled Tuesday Blitz October 5 2021"]
[White "Koellner, Ruben Gideon"]
[Black "Mostbauer, Maximilian"]
[WhiteFideId "12993093"]
[BlackFideId "1626680"]
[WhiteElo "2556"]
[BlackElo "2188"]
[Result "1-0"]
[Round "08"]
[TimeControl "180+1"]
[Date "2021.10.05"]
[WhiteClock "0:01:13"]
[BlackClock "0:00:39"]

1. d4 {[%clk 0:03:00]}  e6 {[%clk 0:03:00]} 2. Nf3 {[%clk 0:03:00]}  Nf6 {[%clk 0:03:00]} 3. Nbd2 {[%clk 0:03:00]}  b6 {[%clk 0:03:00]} 4. e4 {[%clk 0:03:00]}  Bb7 {[%clk 0:03:01]} 5. Bd3 {[%clk 0:03:00]}  d6 {[%clk 0:03:00]} 6. O-O {[%clk 0:03:00]}  Nbd7 {[%clk 0:03:01]} 7. c3 {[%clk 0:03:01]}  e5 {[%clk 0:03:01]} 8. Re1 {[%clk 0:02:59]}  g6 {[%clk 0:03:01]} 9. a4 {[%clk 0:02:57]}  a5 {[%clk 0:03:01]} 10. Nf1 {[%clk 0:02:50]}  Bg7 {[%clk 0:03:01]} 11. b3 {[%clk 0:02:47]}  O-O {[%clk 0:03:01]} 12. Qe2 {[%clk 0:02:46]}  Re8 {[%clk 0:03:00]} 13. dxe5 {[%clk 0:02:43]}  Nxe5 {[%clk 0:02:59]} 14. Nxe5 {[%clk 0:02:43]}  Rxe5 {[%clk 0:03:00]} 15. Qc2 {[%clk 0:02:38]}  Nd7 {[%clk 0:02:01]} 16. Bf4 {[%clk 0:02:34]}  Re7 {[%clk 0:02:00]} 17. f3 {[%clk 0:02:32]}  Nc5 {[%clk 0:02:00]} 18. Bc4 {[%clk 0:02:32]}  Qf8 {[%clk 0:01:56]} 19. Ne3 {[%clk 0:02:24]}  Kh8 {[%clk 0:01:54]} 20. Nd5 {[%clk 0:02:22]}  Bxd5 {[%clk 0:01:54]} 21. Bxd5 {[%clk 0:02:23]}  Ne6 {[%clk 0:01:52]} 22. Bxa8 {[%clk 0:02:18]}  Nxf4 {[%clk 0:01:52]} 23. Bd5 {[%clk 0:02:17]}  f5 {[%clk 0:01:36]} 24. g3 {[%clk 0:02:15]}  Nxd5 {[%clk 0:01:27]} 25. exd5 {[%clk 0:02:14]}  f4 {[%clk 0:01:28]} 26. Kf2 {[%clk 0:02:06]}  Be5 {[%clk 0:01:24]} 27. g4 {[%clk 0:02:04]}  Qf6 {[%clk 0:01:23]} 28. Re4 {[%clk 0:02:01]}  Qh4+ {[%clk 0:01:18]} 29. Kg2 {[%clk 0:02:01]}  h5 {[%clk 0:01:19]} 30. Qf2 {[%clk 0:01:59]}  Qf6 {[%clk 0:01:12]} 31. gxh5 {[%clk 0:01:56]}  gxh5 {[%clk 0:01:07]} 32. Rg1 {[%clk 0:01:48]}  Rg7+ {[%clk 0:00:57]} 33. Kh1 {[%clk 0:01:47]}  Bxc3 {[%clk 0:00:55]} 34. Rxg7 {[%clk 0:01:42]}  Kxg7 {[%clk 0:00:56]} 35. Qg2+ {[%clk 0:01:38]}  Kf7 {[%clk 0:00:56]} 36. Qh3 {[%clk 0:01:38]}  Be5 {[%clk 0:00:49]} 37. Qxh5+ {[%clk 0:01:35]}  Ke7 {[%clk 0:00:50]} 38. Re2 {[%clk 0:01:32]}  Kd7 {[%clk 0:00:39]} 39. Rg2 {[%clk 0:01:21]}  Qe7 {[%clk 0:00:39]} 40. Qf5+ {[%clk 0:01:13]} 1-0


[Site "https://www.chess.com"]

[Event "Titled Tuesday Blitz October 5 2021"]
[White "Korobov, Anton"]
[Black "Taboas Rodriguez, Daniel"]
[WhiteFideId "14105730"]
[BlackFideId "2208466"]
[WhiteElo "2718"]
[BlackElo "2429"]
[Result "1-0"]
[Round "08"]
[TimeControl "180+1"]
[Date "2021.10.05"]
[WhiteClock "0:01:15"]
[BlackClock "0:00:25"]

1. d4 {[%clk 0:03:00]}  Nf6 {[%clk 0:02:59]} 2. c4 {[%clk 0:02:59]}  g6 {[%clk 0:03:00]} 3. Nc3 {[%clk 0:02:59]}  Bg7 {[%clk 0:03:00]} 4. e4 {[%clk 0:02:58]}  d6 {[%clk 0:03:01]} 5. Be2 {[%clk 0:02:58]}  O-O {[%clk 0:03:01]} 6. Bg5 {[%clk 0:02:58]}  c5 {[%clk 0:03:00]} 7. d5 {[%clk 0:02:58]}  e6 {[%clk 0:03:01]} 8. Nf3 {[%clk 0:02:57]}  exd5 {[%clk 0:03:01]} 9. cxd5 {[%clk 0:02:58]}  Bg4 {[%clk 0:02:54]} 10. O-O {[%clk 0:02:53]}  a6 {[%clk 0:02:54]} 11. a4 {[%clk 0:02:52]}  Nbd7 {[%clk 0:02:54]} 12. Nd2 {[%clk 0:02:51]}  Bxe2 {[%clk 0:02:52]} 13. Qxe2 {[%clk 0:02:52]}  Re8 {[%clk 0:02:52]} 14. f4 {[%clk 0:02:43]}  Qc7 {[%clk 0:02:34]} 15. Rae1 {[%clk 0:02:39]}  b5 {[%clk 0:02:17]} 16. axb5 {[%clk 0:02:37]}  axb5 {[%clk 0:02:14]} 17. Qxb5 {[%clk 0:02:31]}  Rab8 {[%clk 0:02:11]} 18. Qc6 {[%clk 0:02:30]}  Rec8 {[%clk 0:01:56]} 19. Qxc7 {[%clk 0:02:25]}  Rxc7 {[%clk 0:01:56]} 20. Nc4 {[%clk 0:02:25]}  h6 {[%clk 0:01:53]} 21. Bxf6 {[%clk 0:02:20]}  Nxf6 {[%clk 0:01:42]} 22. e5 {[%clk 0:02:08]}  dxe5 {[%clk 0:01:40]} 23. fxe5 {[%clk 0:02:09]}  Ng4 {[%clk 0:01:40]} 24. d6 {[%clk 0:02:07]}  Rd7 {[%clk 0:01:33]} 25. h3 {[%clk 0:01:41]}  Rb4 {[%clk 0:01:33]} 26. Rf4 {[%clk 0:01:33]}  Nxe5 {[%clk 0:01:22]} 27. Rxe5 {[%clk 0:01:31]}  Bxe5 {[%clk 0:01:23]} 28. Nxe5 {[%clk 0:01:31]}  Rxd6 {[%clk 0:01:09]} 29. Rf2 {[%clk 0:01:31]}  Rdb6 {[%clk 0:01:04]} 30. Nd5 {[%clk 0:01:30]}  Rxb2 {[%clk 0:01:01]} 31. Nxb6 {[%clk 0:01:30]}  Rxb6 {[%clk 0:01:02]} 32. Nxf7 {[%clk 0:01:31]}  Kg7 {[%clk 0:01:02]} 33. Ne5 {[%clk 0:01:31]}  Rb7 {[%clk 0:01:00]} 34. Rc2 {[%clk 0:01:22]}  Rc7 {[%clk 0:01:00]} 35. Kf2 {[%clk 0:01:21]}  Kf6 {[%clk 0:01:00]} 36. Nd3 {[%clk 0:01:22]}  c4 {[%clk 0:01:00]} 37. Nb2 {[%clk 0:01:22]}  c3 {[%clk 0:00:55]} 38. Nd1 {[%clk 0:01:22]}  Kg5 {[%clk 0:00:52]} 39. Rxc3 {[%clk 0:01:22]}  Rd7 {[%clk 0:00:52]} 40. Ne3 {[%clk 0:01:21]}  h5 {[%clk 0:00:52]} 41. Rc5+ {[%clk 0:01:19]}  Kh6 {[%clk 0:00:52]} 42. h4 {[%clk 0:01:19]}  Rf7+ {[%clk 0:00:51]} 43. Ke2 {[%clk 0:01:20]}  Rf4 {[%clk 0:00:51]} 44. g3 {[%clk 0:01:20]}  Rf8 {[%clk 0:00:51]} 45. Ng2 {[%clk 0:01:17]}  Rf6 {[%clk 0:00:50]} 46. Nf4 {[%clk 0:01:17]}  Kg7 {[%clk 0:00:50]} 47. Ke3 {[%clk 0:01:16]}  Kh6 {[%clk 0:00:50]} 48. Rg5 {[%clk 0:01:16]}  Ra6 {[%clk 0:00:49]} 49. Rxg6+ {[%clk 0:01:16]}  Rxg6 {[%clk 0:00:50]} 50. Nxg6 {[%clk 0:01:16]}  Kxg6 {[%clk 0:00:49]} 51. Ke4 {[%clk 0:01:17]}  Kf6 {[%clk 0:00:24]} 52. Kf4 {[%clk 0:01:15]}  Kg6 {[%clk 0:00:25]} 53. Ke5 {[%clk 0:01:15]} 1-0


[Site "https://www.chess.com"]

[Event "Titled Tuesday Blitz October 5 2021"]
[White "Kotepalli, Sai Nirupama"]
[Black "Mezentsev, Ivan"]
[WhiteFideId "5039444"]
[BlackFideId "13706195"]
[WhiteElo "2447"]
[BlackElo "2295"]
[Result "1-0"]
[Round "08"]
[TimeControl "180+1"]
[Date "2021.10.05"]
[WhiteClock "0:00:05"]
[BlackClock "0:00:05"]

1. e4 {[%clk 0:03:00]}  d5 {[%clk 0:02:51]} 2. exd5 {[%clk 0:03:00]}  Nf6 {[%clk 0:02:46]} 3. d4 {[%clk 0:02:59]}  Nxd5 {[%clk 0:02:45]} 4. Nf3 {[%clk 0:02:56]}  g6 {[%clk 0:02:46]} 5. Bd3 {[%clk 0:02:52]}  Bg7 {[%clk 0:02:46]} 6. c3 {[%clk 0:02:50]}  O-O {[%clk 0:02:46]} 7. h3 {[%clk 0:02:50]}  Nd7 {[%clk 0:02:41]} 8. O-O {[%clk 0:02:50]}  c5 {[%clk 0:02:41]} 9. dxc5 {[%clk 0:02:42]}  Nxc5 {[%clk 0:02:41]} 10. Bc2 {[%clk 0:02:42]}  Bf5 {[%clk 0:02:30]} 11. Bxf5 {[%clk 0:02:39]}  gxf5 {[%clk 0:02:31]} 12. Qc2 {[%clk 0:02:36]}  e6 {[%clk 0:02:29]} 13. Na3 {[%clk 0:02:26]}  Ne4 {[%clk 0:02:23]} 14. Nd2 {[%clk 0:02:14]}  Nd6 {[%clk 0:02:08]} 15. Rd1 {[%clk 0:02:07]}  Rc8 {[%clk 0:02:06]} 16. Nb3 {[%clk 0:01:59]}  Qb6 {[%clk 0:02:01]} 17. Qd3 {[%clk 0:01:52]}  Ne4 {[%clk 0:02:00]} 18. Be3 {[%clk 0:01:45]}  Nxe3 {[%clk 0:01:56]} 19. Qxe3 {[%clk 0:01:46]}  Qxe3 {[%clk 0:01:56]} 20. fxe3 {[%clk 0:01:41]}  Bh6 {[%clk 0:01:56]} 21. Nc2 {[%clk 0:01:34]}  Rcd8 {[%clk 0:01:48]} 22. Na5 {[%clk 0:01:28]}  Nc5 {[%clk 0:01:33]} 23. b4 {[%clk 0:01:24]}  Ne4 {[%clk 0:01:32]} 24. Nxb7 {[%clk 0:01:22]}  Rc8 {[%clk 0:01:32]} 25. Rd3 {[%clk 0:01:12]}  Nxc3 {[%clk 0:01:28]} 26. Nc5 {[%clk 0:01:10]}  Nd5 {[%clk 0:01:27]} 27. a3 {[%clk 0:01:05]}  a5 {[%clk 0:01:17]} 28. Rc1 {[%clk 0:00:51]}  axb4 {[%clk 0:01:15]} 29. axb4 {[%clk 0:00:51]}  Rc7 {[%clk 0:01:09]} 30. Kf1 {[%clk 0:00:31]}  Rfc8 {[%clk 0:01:05]} 31. Ke2 {[%clk 0:00:24]}  Nxb4 {[%clk 0:01:04]} 32. Nxb4 {[%clk 0:00:24]}  Rxc5 {[%clk 0:01:04]} 33. Rxc5 {[%clk 0:00:25]}  Rxc5 {[%clk 0:01:04]} 34. Kf3 {[%clk 0:00:25]}  Rc4 {[%clk 0:01:01]} 35. Na2 {[%clk 0:00:21]}  e5 {[%clk 0:01:00]} 36. Ke2 {[%clk 0:00:20]}  e4 {[%clk 0:00:57]} 37. Rc3 {[%clk 0:00:19]}  Ra4 {[%clk 0:00:54]} 38. Nc1 {[%clk 0:00:19]}  f4 {[%clk 0:00:47]} 39. exf4 {[%clk 0:00:18]}  Bxf4 {[%clk 0:00:47]} 40. Nb3 {[%clk 0:00:18]}  Ra2+ {[%clk 0:00:46]} 41. Kf1 {[%clk 0:00:18]}  Ra3 {[%clk 0:00:36]} 42. Rc8+ {[%clk 0:00:17]}  Kg7 {[%clk 0:00:36]} 43. Nc5 {[%clk 0:00:15]}  Ra1+ {[%clk 0:00:34]} 44. Ke2 {[%clk 0:00:14]}  Ra2+ {[%clk 0:00:34]} 45. Kf1 {[%clk 0:00:14]}  e3 {[%clk 0:00:34]} 46. Nd3 {[%clk 0:00:11]}  e2+ {[%clk 0:00:32]} 47. Kf2 {[%clk 0:00:10]}  Bg5 {[%clk 0:00:12]} 48. g3 {[%clk 0:00:07]}  Rd2 {[%clk 0:00:11]} 49. Ne1 {[%clk 0:00:06]}  Bf6 {[%clk 0:00:11]} 50. Re8 {[%clk 0:00:05]}  Bd4+ {[%clk 0:00:10]} 51. Kf3 {[%clk 0:00:05]}  Ra2 {[%clk 0:00:09]} 52. Rxe2 {[%clk 0:00:04]}  Ra3+ {[%clk 0:00:10]} 53. Kg2 {[%clk 0:00:04]}  Bf6 {[%clk 0:00:10]} 54. Nf3 {[%clk 0:00:05]}  h6 {[%clk 0:00:10]} 55. g4 {[%clk 0:00:05]}  Rb3 {[%clk 0:00:10]} 56. h4 {[%clk 0:00:05]}  Rb4 {[%clk 0:00:10]} 57. Rf2 {[%clk 0:00:05]}  Be7 {[%clk 0:00:10]} 58. Kh3 {[%clk 0:00:05]}  Bc5 {[%clk 0:00:10]} 59. Rg2 {[%clk 0:00:05]}  Rb3 {[%clk 0:00:10]} 60. Kg3 {[%clk 0:00:05]}  Bd6+ {[%clk 0:00:10]} 61. Kf2 {[%clk 0:00:05]}  Bc5+ {[%clk 0:00:10]} 62. Kg3 {[%clk 0:00:04]}  Kg6 {[%clk 0:00:10]} 63. h5+ {[%clk 0:00:04]}  Kg7 {[%clk 0:00:10]} 64. Re2 {[%clk 0:00:04]}  Be3 {[%clk 0:00:10]} 65. Kg2 {[%clk 0:00:03]}  Bf4 {[%clk 0:00:09]} 66. Nh4 {[%clk 0:00:03]}  Kf6 {[%clk 0:00:08]} 67. Nf5 {[%clk 0:00:03]}  Kg5 {[%clk 0:00:08]} 68. Nd4 {[%clk 0:00:01]}  Rd3 {[%clk 0:00:07]} 69. Nf3+ {[%clk 0:00:01]}  Kxg4 {[%clk 0:00:08]} 70. Ne5+ {[%clk 0:00:02]}  Kxh5 {[%clk 0:00:06]} 71. Nxd3 {[%clk 0:00:01]}  Bg5 {[%clk 0:00:06]} 72. Re4 {[%clk 0:00:02]}  f5 {[%clk 0:00:06]} 73. Re2 {[%clk 0:00:03]}  Kg4 {[%clk 0:00:06]} 74. Nf2+ {[%clk 0:00:03]}  Kf4 {[%clk 0:00:06]} 75. Nh3+ {[%clk 0:00:03]}  Kg4 {[%clk 0:00:06]} 76. Nxg5 {[%clk 0:00:03]}  hxg5 {[%clk 0:00:06]} 77. Re8 {[%clk 0:00:04]}  Kf4 {[%clk 0:00:07]} 78. Kf2 {[%clk 0:00:04]}  Kg4 {[%clk 0:00:07]} 79. Rg8 {[%clk 0:00:05]}  Kf4 {[%clk 0:00:07]} 80. Rg7 {[%clk 0:00:05]}  Kg4 {[%clk 0:00:07]} 81. Ra7 {[%clk 0:00:05]}  Kf4 {[%clk 0:00:08]} 82. Ra4+ {[%clk 0:00:06]}  Ke5 {[%clk 0:00:08]} 83. Kf3 {[%clk 0:00:06]}  Kf6 {[%clk 0:00:07]} 84. Ra5 {[%clk 0:00:06]}  Ke6 {[%clk 0:00:08]} 85. Ke3 {[%clk 0:00:06]}  Kf6 {[%clk 0:00:08]} 86. Kd4 {[%clk 0:00:06]}  g4 {[%clk 0:00:08]} 87. Ra6+ {[%clk 0:00:06]}  Kg5 {[%clk 0:00:08]} 88. Ke3 {[%clk 0:00:05]}  f4+ {[%clk 0:00:08]} 89. Ke4 {[%clk 0:00:05]}  f3 {[%clk 0:00:08]} 90. Ra5+ {[%clk 0:00:05]}  Kh4 {[%clk 0:00:08]} 91. Ke3 {[%clk 0:00:05]}  Kg3 {[%clk 0:00:07]} 92. Rg5 {[%clk 0:00:05]}  f2 {[%clk 0:00:07]} 93. Rf5 {[%clk 0:00:05]}  Kh3 {[%clk 0:00:04]} 94. Rxf2 {[%clk 0:00:04]}  g3 {[%clk 0:00:05]} 95. Rf8 {[%clk 0:00:05]}  g2 {[%clk 0:00:05]} 96. Rg8 {[%clk 0:00:05]}  Kh2 {[%clk 0:00:05]} 97. Kf2 {[%clk 0:00:05]}  Kh3 {[%clk 0:00:05]} 98. Rxg2 {[%clk 0:00:05]} 1-0


[Site "https://www.chess.com"]

[Event "Titled Tuesday Blitz October 5 2021"]
[White "Kovalchuk94"]
[Black "Alvarez Calzadilla, Jose Avelino"]
[BlackFideId "3526151"]
[WhiteElo "2680"]
[BlackElo "2547"]
[Result "1-0"]
[Round "08"]
[TimeControl "180+1"]
[Date "2021.10.05"]
[WhiteClock "0:00:12"]
[BlackClock "0:00:05"]

1. d4 {[%clk 0:03:00]}  Nf6 {[%clk 0:02:59]} 2. c4 {[%clk 0:03:00]}  g6 {[%clk 0:02:59]} 3. Nc3 {[%clk 0:02:59]}  d5 {[%clk 0:02:59]} 4. cxd5 {[%clk 0:03:00]}  Nxd5 {[%clk 0:03:00]} 5. e4 {[%clk 0:03:00]}  Nxc3 {[%clk 0:03:00]} 6. bxc3 {[%clk 0:03:01]}  Bg7 {[%clk 0:03:01]} 7. Nf3 {[%clk 0:02:57]}  c5 {[%clk 0:02:58]} 8. Be3 {[%clk 0:02:57]}  O-O {[%clk 0:02:57]} 9. Be2 {[%clk 0:02:57]}  cxd4 {[%clk 0:02:53]} 10. cxd4 {[%clk 0:02:58]}  Qa5+ {[%clk 0:02:53]} 11. Nd2 {[%clk 0:02:58]}  Nc6 {[%clk 0:02:50]} 12. O-O {[%clk 0:02:57]}  Qd8 {[%clk 0:02:40]} 13. d5 {[%clk 0:02:56]}  Na5 {[%clk 0:02:32]} 14. Rc1 {[%clk 0:02:53]}  b6 {[%clk 0:02:30]} 15. Nc4 {[%clk 0:02:29]}  Nxc4 {[%clk 0:02:22]} 16. Bxc4 {[%clk 0:02:29]}  e6 {[%clk 0:02:22]} 17. dxe6 {[%clk 0:02:26]}  Bxe6 {[%clk 0:02:21]} 18. Bxe6 {[%clk 0:02:24]}  fxe6 {[%clk 0:02:20]} 19. Qb3 {[%clk 0:02:24]}  Qe7 {[%clk 0:02:13]} 20. Rc6 {[%clk 0:02:23]}  Rae8 {[%clk 0:02:01]} 21. Rfc1 {[%clk 0:02:23]}  Qf7 {[%clk 0:01:51]} 22. Rc7 {[%clk 0:01:59]}  Re7 {[%clk 0:01:47]} 23. Rxe7 {[%clk 0:01:58]}  Qxe7 {[%clk 0:01:48]} 24. Rc6 {[%clk 0:01:58]}  Re8 {[%clk 0:01:45]} 25. Qc4 {[%clk 0:01:53]}  Qd7 {[%clk 0:01:38]} 26. g3 {[%clk 0:01:48]}  Be5 {[%clk 0:01:30]} 27. Kg2 {[%clk 0:01:46]}  Bf6 {[%clk 0:00:58]} 28. Rc7 {[%clk 0:01:38]}  Qd6 {[%clk 0:00:57]} 29. Rxa7 {[%clk 0:01:35]}  h5 {[%clk 0:00:53]} 30. Rb7 {[%clk 0:01:21]}  Bd8 {[%clk 0:00:53]} 31. Qd4 {[%clk 0:01:07]}  Qf8 {[%clk 0:00:32]} 32. Bf4 {[%clk 0:00:38]}  h4 {[%clk 0:00:27]} 33. Bd6 {[%clk 0:00:34]}  Qh6 {[%clk 0:00:21]} 34. h3 {[%clk 0:00:29]}  hxg3 {[%clk 0:00:19]} 35. Bxg3 {[%clk 0:00:29]}  Qf8 {[%clk 0:00:18]} 36. Qe5 {[%clk 0:00:23]}  Bf6 {[%clk 0:00:17]} 37. Qf4 {[%clk 0:00:20]}  Bd4 {[%clk 0:00:11]} 38. Qc7 {[%clk 0:00:16]}  Bg7 {[%clk 0:00:07]} 39. Be5 {[%clk 0:00:12]}  Re7 {[%clk 0:00:03]} 40. Qxe7 {[%clk 0:00:11]}  Qxe7 {[%clk 0:00:04]} 41. Rxe7 {[%clk 0:00:12]}  Bxe5 {[%clk 0:00:05]} 42. Rxe6 {[%clk 0:00:12]}  Bd4 {[%clk 0:00:05]} 43. Rxg6+ {[%clk 0:00:12]} 1-0


[Site "https://www.chess.com"]